bitfinex-derivatives/quotes_ETHF0:USTF0_20260121
["timestamp","ask_amount","ask_price","bid_price","bid_amount"]
[1769018285320,4.3380995,2904.8,2903.1,0.17237]
[1769018285623,4.42791554,2904.7,2903.1,0.17237]
[1769018285916,3.41243384,2904.7,2903.1,0.00302237]
[1769018286309,3.41243384,2904.7,2903.6,0.17234]
[1769018287114,0.00264476,2904.7,2903.6,0.17234]
[1769018290923,0.00264476,2904.7,2903.3,3.72344632]
[1769018291224,3.41243384,2904.7,2903.1,0.00302237]
[1769018291921,0.00264476,2904.7,2903.1,3.72646869]
[1769018293019,0.00264476,2904.7,2903.4,3.89579632]
[1769018294328,0.00264476,2904.7,2903.4,3.72344632]
[1769018296928,0.00264476,2904.7,2903.1,2.11602237]
[1769018296929,3.73932012,2904.7,2903.1,0.00302237]
[1769018297827,3.91160012,2904.7,2903.1,0.00302237]
[1769018298130,0.17492476,2904.7,2903.1,3.48011817]
[1769018298728,3.90896536,2904.5,2903.1,0.00302237]
[1769018305240,1.00681718,2904.4,2903.1,0.00302237]
[1769018305440,3.90896536,2904.5,2903.1,0.00302237]
[1769018305640,1.00681718,2904.4,2903.1,0.00302237]
[1769018305846,3.90896536,2904.5,2903.1,0.00302237]
[1769018306043,1.00681718,2904.4,2903.1,0.00302237]
[1769018306344,1.00769578,2904.3,2903.1,0.00302237]
[1769018306645,3.90896536,2904.5,2903.1,0.00302237]
[1769018307445,1.00865248,2904.4,2903.1,0.00302237]
[1769018307641,0.00264476,2904.7,2903.2,3.6494558]
[1769018307837,0.00264476,2904.7,2903.2,3.4770958]
[1769018308037,11.30113602,2906.0,2904.0,3.4770958]
[1769018308339,3.73667536,2906.5,2904.8,3.4770958]
[1769018308538,0.92831042,2906.9,2905.0,3.6493558]
[1769018308743,1.00896827,2906.8,2905.2,3.6493358]
[1769018308937,0.92831042,2907.3,2905.5,3.4770958]
[1769018309135,1.00881933,2907.2,2905.5,3.47953361]
[1769018309338,4.74549469,2907.1,2905.5,0.00243781]
[1769018309547,1.00881933,2907.0,2905.5,0.00243781]
[1769018309744,1.00881933,2906.9,2905.5,0.00243781]
[1769018309942,1.00881933,2906.8,2905.5,0.00243781]
[1769018310142,4.74549469,2906.7,2905.5,1e-08]
[1769018310341,0.17215,2906.9,2905.5,1e-08]
[1769018310342,4.74549469,2906.6,2905.5,1e-08]
[1769018310643,1.00881933,2906.5,2905.5,1e-08]
[1769018310940,1.00881933,2906.4,2905.5,1e-08]
[1769018311140,1.00881933,2906.3,2905.5,1e-08]
[1769018311444,4.66498578,2906.6,2905.5,1e-08]
[1769018311646,1.00868278,2906.5,2905.5,1e-08]
[1769018311946,1.00868278,2906.4,2905.5,1e-08]
[1769018312142,3.73667536,2906.2,2905.5,1e-08]
[1769018312347,1.00861137,2906.1,2904.5,3.4770958]
[1769018312542,3.73667536,2906.2,2904.5,3.4770958]
[1769018312743,1.00861777,2906.1,2904.5,3.4770958]
[1769018312944,3.73667536,2906.2,2904.5,3.4770958]
[1769018313149,1.00861784,2906.1,2904.5,3.4770958]
[1769018313351,3.73667536,2906.2,2904.5,3.47987635]
[1769018313645,1.00873178,2906.1,2904.5,3.47987635]
[1769018313847,3.73667536,2905.9,2904.5,0.00278055]
[1769018314050,1.00879264,2905.8,2904.5,0.00278055]
[1769018314442,3.73667536,2905.7,2904.5,0.00278055]
[1769018314843,1.00898829,2905.6,2904.5,0.00278055]
[1769018315047,3.73667536,2905.7,2904.5,0.00278055]
[1769018315048,1.00898829,2905.5,2904.5,0.00278055]
[1769018315251,1.00898829,2905.4,2904.5,0.00278055]
[1769018315454,3.73667536,2905.7,2904.5,0.00278055]
[1769018315653,1.0091642,2905.6,2904.5,0.00278055]
[1769018315854,1.0091642,2905.5,2904.5,0.00278055]
[1769018316048,1.0091642,2905.4,2904.5,0.00278055]
[1769018316248,3.73667536,2905.7,2904.5,0.00278055]
[1769018316451,1.00914227,2905.6,2904.5,0.00278055]
[1769018316651,1.00914227,2905.5,2904.5,0.00278055]
[1769018316852,1.00914227,2905.4,2904.5,0.00278055]
[1769018317151,3.73667536,2905.7,2904.5,0.00278055]
[1769018317353,1.00912269,2905.6,2904.5,0.00278055]
[1769018317553,1.00912269,2905.5,2904.5,0.00278055]
[1769018317851,1.00912269,2905.4,2904.5,0.00278055]
[1769018318151,3.73667536,2905.7,2904.5,0.00278055]
[1769018318350,1.00910917,2905.6,2904.5,0.00278055]
[1769018318547,1.00910917,2905.5,2904.5,0.00278055]
[1769018318751,3.73667536,2905.7,2904.5,0.00278055]
[1769018319053,1.00908596,2905.6,2904.5,0.00278055]
[1769018319253,1.00908596,2905.5,2904.5,0.00278055]
[1769018319557,3.73667536,2905.7,2904.5,0.00278055]
[1769018319748,4.74576052,2905.6,2904.5,0.00278055]
[1769018320055,1.00908516,2905.5,2904.5,0.00278055]
[1769018320856,3.73667536,2905.6,2904.5,0.00278055]
[1769018321051,3.73667536,2905.4,2904.5,0.00278055]
[1769018321249,3.73667536,2905.4,2903.8,0.17233]
[1769018322346,3.73667536,2905.4,2903.8,0.17670632]
[1769018325253,3.73667536,2905.4,2903.9,0.17232]
[1769018327454,3.45563498,2905.9,2904.1,3.72013813]
[1769018327648,1.01100776,2905.8,2904.1,3.72013813]
[1769018327952,3.45563498,2905.9,2904.1,3.72013813]
[1769018328156,4.46662449,2905.8,2904.1,3.72013813]
[1769018328348,3.45563498,2905.8,2904.1,3.72013813]
[1769018328753,3.45563498,2905.8,2904.2,0.1723]
[1769018328951,0.92831042,2906.2,2904.2,3.54782813]
[1769018329258,3.45563498,2906.9,2905.3,3.72006813]
[1769018329458,0.93182833,2907.3,2905.5,3.72005813]
[1769018329659,0.00351791,2907.3,2905.7,0.17222]
[1769018329852,3.45915289,2907.3,2905.7,0.17222]
[1769018330352,3.45563498,2907.1,2905.0,3.54782813]
[1769018330957,3.45563498,2906.8,2904.8,2.27027]
[1769018331150,3.45563498,2906.8,2904.8,5.81809813]
[1769018332450,3.45563498,2906.8,2904.9,0.17226]
[1769018333452,3.62778498,2906.8,2904.9,0.17226]
[1769018334449,3.45563498,2906.8,2904.4,3.54782813]
[1769018334649,3.62780498,2906.5,2904.4,3.54782813]
[1769018335248,3.62781498,2906.3,2904.4,3.54782813]
[1769018335449,3.45563498,2905.9,2904.3,2.1]
[1769018338264,3.45563498,2905.9,2904.3,5.82012813]
[1769018339654,3.45563498,2905.9,2904.5,0.17228]
[1769018339852,0.92831042,2906.3,2904.5,3.75785831]
[1769018340057,4.63468839,2906.3,2904.5,3.75785831]
[1769018340264,3.70637797,2906.2,2904.5,3.75785831]
[1769018340461,4.63468839,2906.2,2904.5,3.75785831]
[1769018340964,3.70637797,2906.1,2904.2,0.1723]
[1769018341265,3.70637797,2906.1,2904.2,3.75787831]
[1769018341266,1.01002598,2906.0,2904.2,3.75787831]
[1769018341454,1.01002598,2905.9,2904.2,3.75787831]
[1769018341661,1.01002598,2905.8,2904.5,0.17229]
[1769018341965,3.70637797,2906.1,2904.5,0.17229]
[1769018342173,1.00999014,2906.0,2904.5,0.17229]
[1769018342468,1.00999014,2905.9,2904.5,0.17229]
[1769018342764,3.70637797,2906.1,2904.5,0.17229]
[1769018342965,1.01007211,2906.0,2904.5,0.17229]
[1769018343164,1.01007211,2905.9,2904.5,0.17229]
[1769018343360,3.70637797,2906.1,2904.5,0.17229]
[1769018343560,1.01011442,2906.0,2904.5,0.17229]
[1769018343755,3.70637797,2905.8,2904.5,0.17229]
[1769018345365,3.70637797,2905.8,2903.9,0.17232]
[1769018345670,3.70637797,2905.8,2904.3,0.1723]
[1769018346367,3.70637797,2905.8,2904.0,3.58557831]
[1769018346565,3.70637797,2906.3,2904.8,0.17227]
[1769018346868,0.17217,2906.5,2904.8,3.75784831]
[1769018346869,1.01013829,2906.2,2904.8,3.75784831]
[1769018347073,1.10048042,2906.5,2904.8,3.75784831]
[1769018347373,1.0101208,2906.4,2904.8,3.75784831]
[1769018347573,1.0101208,2906.3,2904.8,3.75784831]
[1769018347774,1.0101208,2906.2,2904.8,3.75784831]
[1769018348076,1.10048042,2906.5,2904.8,3.75784831]
[1769018348278,1.93844402,2906.4,2904.8,3.75784831]
[1769018348572,1.0101336,2906.3,2904.8,3.75784831]
[1769018348761,1.0101336,2906.2,2904.8,3.75784831]
[1769018348964,1.0101336,2906.1,2904.8,3.75784831]
[1769018349166,0.92831042,2906.4,2904.8,3.75784831]
[1769018349380,1.0101505,2906.3,2904.8,3.75784831]
[1769018349571,1.0101505,2906.2,2904.8,3.75784831]
[1769018349774,1.0101505,2906.1,2904.8,3.75784831]
[1769018349977,1.10048042,2906.5,2904.8,3.75784831]
[1769018350173,1.01013797,2906.4,2904.8,3.75784831]
[1769018350473,1.01013797,2906.3,2904.8,3.75784831]
[1769018350680,3.70637797,2906.2,2904.8,0.17227]
[1769018350879,4.80685839,2906.5,2904.9,3.58557831]
[1769018351070,1.01014533,2906.4,2904.9,3.58557831]
[1769018351275,1.01014533,2906.3,2904.9,3.58557831]
[1769018351476,1.01014533,2906.2,2904.9,3.58557831]
[1769018351676,4.80685839,2906.5,2904.9,3.58557831]
[1769018351878,1.01023246,2906.4,2904.9,3.58557831]
[1769018352076,1.01023246,2906.3,2904.9,3.58557831]
[1769018352279,1.01023246,2906.2,2904.9,3.58557831]
[1769018352476,3.70637797,2906.4,2904.9,3.58557831]
[1769018352775,1.01035811,2906.3,2904.9,3.58557831]
[1769018352976,1.01035811,2906.2,2904.9,3.58557831]
[1769018353278,4.63468839,2906.4,2904.9,3.58557831]
[1769018353479,4.7169354,2906.3,2904.8,0.17227]
[1769018353678,1.01055743,2906.2,2904.8,0.17227]
[1769018353978,3.70637797,2906.3,2904.8,0.17227]
[1769018354182,1.0105557,2906.2,2904.8,0.17227]
[1769018354381,3.70637797,2906.3,2904.8,0.17227]
[1769018354582,0.99986075,2906.2,2904.8,0.17227]
[1769018354882,3.70637797,2906.3,2904.8,0.17227]
[1769018355079,0.99986049,2906.2,2904.8,0.17227]
[1769018355280,3.70637797,2906.3,2904.8,0.17227]
[1769018355480,1.00009501,2906.2,2904.8,0.17227]
[1769018355683,3.70637797,2906.3,2904.8,0.17227]
[1769018355883,1.0000969,2906.2,2904.8,0.17227]
[1769018356082,3.70637797,2906.3,2904.8,0.17227]
[1769018356286,1.00033303,2906.2,2904.8,0.17227]
[1769018356583,3.70637797,2906.3,2904.8,0.17227]
[1769018356784,1.00033303,2906.2,2904.8,0.17227]
[1769018357090,3.70637797,2906.3,2904.8,0.17227]
[1769018357280,1.00061494,2906.2,2904.8,0.17227]
[1769018357581,3.70637797,2906.3,2904.8,0.17227]
[1769018357783,1.00061515,2906.2,2904.8,0.17227]
[1769018357984,3.70637797,2906.3,2904.8,0.17227]
[1769018358186,1.00061495,2906.2,2904.8,0.17227]
[1769018358386,1.00061495,2906.1,2904.8,0.17227]
[1769018358576,3.70637797,2906.3,2904.8,0.17227]
[1769018358775,1.00074619,2906.2,2904.8,0.17227]
[1769018358974,1.00074619,2906.1,2904.8,0.17227]
[1769018359170,3.70637797,2906.3,2904.8,0.17227]
[1769018359374,1.00074774,2906.2,2904.8,0.17227]
[1769018359571,3.70637797,2906.3,2904.8,0.17227]
[1769018359770,1.00074774,2906.2,2904.8,0.17227]
[1769018359971,1.00074774,2906.1,2904.8,0.17227]
[1769018360171,3.70637797,2906.3,2904.8,0.17227]
[1769018360375,1.00116491,2906.2,2904.8,0.17227]
[1769018360582,1.00116491,2906.1,2904.8,0.17227]
[1769018360781,3.70637797,2906.3,2904.8,0.17227]
[1769018360982,1.00116451,2906.2,2904.8,0.17227]
[1769018361185,1.00116451,2906.1,2904.8,0.17227]
[1769018361384,3.70637797,2906.3,2905.0,0.17226]
[1769018361585,1.00126072,2906.2,2905.1,3.85056722]
[1769018361785,0.92831042,2906.4,2905.1,3.85056722]
[1769018361989,1.0012484,2906.3,2905.1,3.85056722]
[1769018362188,1.0012484,2906.2,2905.1,3.85056722]
[1769018362487,0.92831042,2906.4,2905.1,3.85056722]
[1769018362689,1.00132998,2906.3,2905.1,3.85056722]
[1769018362890,1.00132998,2906.2,2905.1,3.85056722]
[1769018363185,0.92831042,2906.4,2905.1,3.85056722]
[1769018363386,1.00143319,2906.3,2905.1,3.85056722]
[1769018363587,1.00143319,2906.2,2905.1,3.85056722]
[1769018363780,0.92831042,2906.4,2905.1,3.85056722]
[1769018363979,1.00143343,2906.3,2905.1,3.85056722]
[1769018364179,1.00143343,2906.2,2905.1,3.85056722]
[1769018364381,0.92831042,2906.4,2905.1,3.85056722]
[1769018364689,1.0014992,2906.3,2905.1,3.85056722]
[1769018364890,1.0014992,2906.2,2905.1,3.85056722]
[1769018365187,0.92831042,2906.5,2905.1,3.85056722]
[1769018365389,1.00148598,2906.4,2905.1,3.85056722]
[1769018365687,1.00148598,2906.3,2905.1,3.85056722]
[1769018365888,1.00148598,2906.2,2905.1,3.85056722]
[1769018366089,0.92831042,2906.5,2905.1,3.85056722]
[1769018366291,1.001564,2906.4,2905.1,3.85056722]
[1769018366492,1.001564,2906.3,2905.1,0.17225]
[1769018367389,3.72634687,2906.2,2904.6,3.85059722]
[1769018367692,4.72791087,2906.1,2904.6,3.85059722]
[1769018367889,3.72634687,2906.1,2904.7,0.17228]
[1769018368693,4.72824358,2906.0,2904.7,0.17228]
[1769018368896,1.00189671,2905.9,2904.8,0.17227]
[1769018369097,0.92831042,2906.3,2904.9,0.17226]
[1769018369388,1.93031631,2906.3,2904.9,0.17226]
[1769018370293,1.93031631,2906.2,2904.9,0.17226]
[1769018370490,1.00200589,2906.1,2904.9,0.17226]
[1769018370787,1.00200589,2906.0,2904.9,0.17226]
[1769018370993,0.92831042,2906.3,2904.9,0.17226]
[1769018371194,1.93034595,2906.3,2904.9,0.17226]
[1769018371398,1.00203553,2906.2,2904.9,0.17226]
[1769018371697,1.00203553,2906.1,2904.9,0.17226]
[1769018371895,1.00203553,2906.0,2904.9,0.17226]
[1769018372191,3.72634687,2905.8,2904.3,0.1723]
[1769018372386,1.00203553,2905.7,2904.5,0.17229]
[1769018372698,1.00203553,2905.7,2904.1,3.67831722]
[1769018372893,3.72634687,2905.6,2904.1,3.67831722]
[1769018373096,1.00202528,2905.5,2903.9,0.17232]
[1769018373289,4.72837215,2905.4,2904.0,0.17232]
[1769018373494,3.72634687,2905.2,2904.0,0.17232]
[1769018373691,1.00202528,2905.1,2904.0,0.17232]
[1769018374095,3.73075649,2905.2,2904.0,0.17232]
[1769018374296,3.72634687,2905.0,2903.8,0.00437632]
[1769018374698,0.00440962,2905.2,2903.8,0.00437632]
[1769018374895,1.00158521,2905.1,2903.8,0.00437632]
[1769018375095,3.73075649,2905.2,2903.8,0.00437632]
[1769018375297,1.00102162,2905.1,2903.8,0.00437632]
[1769018375497,3.73075649,2905.2,2903.8,0.00437632]
[1769018375700,1.00099157,2905.1,2903.8,0.00437632]
[1769018376000,0.00440962,2905.2,2903.8,3.85502354]
[1769018377089,3.73075649,2905.2,2903.8,0.17670632]
[1769018378402,0.00440962,2905.2,2903.8,3.85502354]
[1769018378603,0.00440962,2905.2,2903.9,0.17232]
[1769018379595,0.92831042,2905.6,2903.9,0.17232]
[1769018379900,0.99952969,2905.5,2903.9,0.17232]
[1769018380101,0.99952969,2905.4,2903.9,0.17232]
[1769018380295,0.99952969,2905.3,2903.9,0.17232]
[1769018380498,0.00272612,2905.3,2903.9,0.17232]
[1769018382702,0.00272612,2905.3,2904.0,0.17232]
[1769018383998,0.00272612,2905.3,2904.1,0.17231]
[1769018388400,0.00272612,2905.3,2904.3,0.1723]
[1769018388709,3.77321248,2906.1,2904.4,3.61504964]
[1769018388710,4.7015229,2906.1,2904.4,3.61504964]
[1769018388895,1.00644366,2906.0,2904.4,3.61504964]
[1769018389204,3.77321248,2905.8,2904.0,3.44275964]
[1769018389398,4.77965614,2905.7,2904.0,3.44275964]
[1769018389607,3.77321248,2905.5,2904.0,3.44275964]
[1769018390001,3.77321248,2905.5,2903.9,2.28632]
[1769018391309,3.77321248,2905.5,2903.9,5.72907964]
[1769018391912,3.77321248,2905.5,2904.0,3.44275964]
[1769018393313,3.77321248,2905.5,2904.0,3.61507964]
[1769018394013,3.77321248,2905.5,2904.0,0.17232]
[1769018395516,4.78100701,2905.4,2903.8,0.00437632]
[1769018395709,3.77321248,2905.2,2903.8,0.00437632]
[1769018396108,3.77321248,2905.0,2903.8,0.00437632]
[1769018397303,0.17224,2905.3,2903.8,0.00437632]
[1769018397504,1.00832135,2905.2,2903.8,0.00437632]
[1769018397710,1.00832135,2905.1,2903.8,0.00437632]
[1769018398014,1.00832135,2905.0,2903.8,0.00437632]
[1769018398317,3.94546248,2905.2,2903.8,0.00437632]
[1769018398511,3.77321248,2905.0,2903.8,0.00437632]
[1769018399112,1.00896408,2904.9,2903.8,0.00437632]
[1769018399314,3.72382442,2904.9,2903.8,0.00437632]
[1769018401116,1.0099389,2904.8,2903.8,0.00437632]
[1769018401316,1.00987416,2904.7,2903.8,0.00437632]
[1769018401518,3.72382442,2904.8,2903.8,0.00437632]
[1769018401717,1.00988341,2904.7,2903.8,0.00437632]
[1769018401917,3.72382442,2904.8,2903.8,0.00437632]
[1769018402117,1.00988674,2904.7,2903.8,0.00437632]
[1769018402313,3.72382442,2904.8,2903.8,0.00437632]
[1769018402515,1.00998669,2904.7,2903.8,0.00437632]
[1769018402716,3.72382442,2904.8,2903.8,0.00437632]
[1769018403022,1.00998668,2904.7,2903.8,0.00437632]
[1769018403321,3.72382442,2904.8,2903.8,0.00437632]
[1769018403621,1.00988205,2904.7,2903.8,0.00437632]
[1769018403823,3.72382442,2904.8,2903.8,0.00437632]
[1769018404017,1.00988282,2904.7,2903.8,0.00437632]
[1769018404321,3.72382442,2904.8,2903.8,0.00437632]
[1769018404521,1.00974472,2904.7,2903.8,0.00437632]
[1769018404716,3.72382442,2904.8,2903.8,0.00437632]
[1769018404915,1.00974493,2904.7,2903.8,0.00437632]
[1769018405111,0.92831042,2905.0,2903.8,0.00437632]
[1769018405316,1.00971058,2904.9,2903.9,3.52579344]
[1769018405516,4.65531674,2905.7,2903.9,3.52579344]
[1769018405716,4.65531674,2905.7,2904.5,3.69808344]
[1769018405717,1.00946197,2905.6,2904.5,3.69808344]
[1769018405913,0.0031819,2905.7,2904.5,3.52579344]
[1769018406214,2.45968781,2906.4,2904.5,3.52579344]
[1769018406215,4.65213484,2906.5,2905.1,0.17225]
[1769018406414,0.92831042,2906.7,2904.9,3.52579344]
[1769018406725,0.92831042,2907.1,2905.1,3.52579344]
[1769018406922,1.00823532,2907.0,2905.1,3.52579344]
[1769018407123,1.00823532,2906.9,2905.1,3.52579344]
[1769018407423,0.00334321,2907.0,2905.1,3.52579344]
[1769018407620,3.72382442,2907.7,2906.0,3.52579344]
[1769018407822,1.00665623,2907.6,2906.2,3.69798344]
[1769018408017,4.65213484,2907.9,2906.2,3.69798344]
[1769018408223,4.73045927,2907.8,2906.2,3.69798344]
[1769018408423,3.72382442,2907.8,2906.2,3.69798344]
[1769018408727,3.72644303,2907.8,2906.2,3.70199363]
[1769018410220,3.72382442,2907.3,2906.2,0.00401019]
[1769018410436,3.89597442,2907.0,2905.2,3.52579344]
[1769018410727,3.72382442,2907.0,2905.2,3.52579344]
[1769018411318,3.72382442,2907.0,2905.2,3.52901872]
[1769018412137,3.72382442,2907.0,2905.2,0.00322528]
[1769018412325,3.72382442,2906.8,2905.2,0.00322528]
[1769018412520,3.72382442,2906.6,2905.2,0.00322528]
[1769018412825,3.72382442,2906.4,2905.2,0.00322528]
[1769018416632,3.58684745,2906.9,2905.2,0.00322528]
[1769018416835,3.58684745,2906.8,2905.2,0.17546528]
[1769018417029,3.58684745,2907.2,2905.4,0.17223]
[1769018417334,1.00555358,2907.1,2905.4,0.17223]
[1769018417521,3.58684745,2907.2,2905.5,0.17223]
[1769018417522,1.00555358,2907.0,2905.5,0.17223]
[1769018417728,3.58684745,2907.2,2905.5,3.65060574]
[1769018418032,3.58684745,2907.2,2905.6,1.913]
[1769018418437,3.58684745,2907.2,2905.7,0.17221]
[1769018418634,3.75895745,2907.6,2905.7,3.82281574]
[1769018418934,3.58684745,2907.4,2905.7,3.82281574]
[1769018419331,3.58684745,2907.4,2905.7,0.17221]
[1769018419535,3.58684745,2907.2,2905.7,0.17221]
[1769018419839,3.58684745,2907.2,2905.2,5.94707102]
[1769018420030,3.58684745,2907.2,2905.3,0.17224]
[1769018420335,3.58684745,2907.2,2905.6,0.17222]
[1769018420639,3.58684745,2907.2,2905.7,0.17221]
[1769018421334,3.58684745,2907.2,2905.8,0.17221]
[1769018421935,3.58684745,2907.2,2905.2,0.00322528]
[1769018422237,4.51515787,2906.8,2905.2,0.00322528]
[1769018422437,3.58684745,2906.6,2905.2,0.00322528]
[1769018423639,3.58684745,2906.4,2905.2,0.00322528]
[1769018423937,3.75902745,2906.4,2905.2,0.00322528]
[1769018424243,3.75904745,2906.0,2904.1,2.08531]
[1769018425132,3.75904745,2906.0,2904.1,2.08827883]
[1769018425532,3.75904745,2906.0,2904.2,0.17231]
[1769018425733,3.58684745,2905.4,2904.1,0.00296883]
[1769018425941,3.59109234,2905.4,2904.1,0.00296883]
[1769018426237,3.58684745,2905.2,2904.1,0.00296883]
[1769018426441,3.58684745,2905.2,2903.1,3.82297574]
[1769018427341,3.58684745,2905.2,2903.1,3.82744684]
[1769018427543,3.58684745,2905.0,2903.1,3.82744684]
[1769018428438,3.58684745,2905.0,2903.2,0.17236]
[1769018429345,3.58684745,2904.8,2903.1,0.0044711]
[1769018429547,3.75911745,2904.8,2903.1,0.0044711]
[1769018434139,3.58684745,2904.4,2903.1,0.0044711]
[1769018434340,3.58684745,2903.9,2902.1,0.17243]
[1769018435144,3.58684745,2903.9,2902.1,3.82303574]
[1769018435339,3.58684745,2903.9,2902.1,3.82714861]
[1769018436344,3.75917745,2903.9,2902.1,3.65471861]
[1769018436542,3.58684745,2903.7,2902.1,0.00411287]
[1769018437746,3.58684745,2903.4,2902.1,0.00411287]
[1769018438642,3.75920745,2903.4,2902.1,0.00411287]
[1769018439037,3.75920745,2903.3,2902.1,0.00411287]
[1769018439246,3.58684745,2902.7,2901.0,3.82309574]
[1769018439550,3.58684745,2903.3,2901.0,3.82309574]
[1769018439745,3.58684745,2903.1,2901.0,3.82309574]
[1769018440249,3.5908925,2903.1,2901.0,3.82715807]
[1769018440452,3.5908925,2903.1,2901.4,3.82307574]
[1769018443253,3.5908925,2903.1,2901.0,0.00406233]
[1769018443254,0.00404505,2903.1,2901.6,3.82306574]
[1769018444252,0.00404505,2903.1,2901.7,3.65060574]
[1769018444752,0.00404505,2903.1,2901.8,0.17245]
[1769018444947,3.5908925,2903.1,2901.3,2.112]
[1769018445146,3.5908925,2903.1,2901.3,5.76260574]
[1769018445347,3.5908925,2903.1,2901.3,5.93508574]
[1769018446248,3.89404075,2902.9,2901.0,0.00406233]
[1769018446455,3.89406075,2902.4,2901.0,0.00406233]
[1769018446749,3.89408075,2902.2,2901.0,0.00406233]
[1769018447852,3.72165075,2902.2,2901.0,0.00406233]
[1769018448052,3.72165075,2902.7,2901.0,0.00406233]
[1769018448848,3.72165075,2902.7,2901.0,3.55125564]
[1769018449049,3.72165075,2902.7,2901.2,3.71967331]
[1769018449262,3.72165075,2902.7,2901.3,0.17248]
[1769018449453,0.00404505,2903.1,2901.3,3.71967331]
[1769018449754,0.00404505,2903.1,2901.9,0.17244]
[1769018451064,0.00404505,2903.1,2901.6,3.54719331]
[1769018451264,3.7256958,2903.1,2901.3,0.17248]
[1769018452062,3.72165075,2902.9,2901.3,0.17248]
[1769018452365,4.7252725,2902.8,2901.3,0.17248]
[1769018452662,3.72165075,2902.8,2901.0,0.00406233]
[1769018452960,1.00442822,2902.7,2901.0,3.55125564]
[1769018453163,3.72165075,2902.8,2901.0,3.55125564]
[1769018453363,1.00533743,2902.7,2901.0,3.72374564]
[1769018453568,3.72165075,2902.8,2901.0,3.72374564]
[1769018453760,1.0053372,2902.7,2901.0,3.72374564]
[1769018453960,3.72165075,2902.8,2901.1,0.17249]
[1769018454160,3.72165075,2902.8,2901.1,3.71968331]
[1769018454368,0.00404505,2903.1,2901.4,3.54719331]
[1769018454664,1.00607489,2903.0,2901.4,3.54719331]
[1769018454864,0.00404505,2903.1,2901.4,3.54719331]
[1769018455062,1.00605757,2903.0,2901.4,3.54719331]
[1769018455367,0.00404505,2903.1,2901.4,3.54719331]
[1769018455567,1.00691532,2903.0,2901.4,3.54719331]
[1769018455769,0.00404505,2903.1,2901.4,3.71966331]
[1769018455960,1.00690242,2903.0,2901.6,0.17246]
[1769018456156,0.00404505,2903.1,2901.8,3.71964331]
[1769018456864,3.89404075,2902.9,2901.2,0.17248]
[1769018457168,3.72165075,2902.7,2901.0,0.00406233]
[1769018457368,3.72165075,2902.5,2901.0,0.00406233]
[1769018457563,1.92731738,2902.6,2901.0,0.00406233]
[1769018457564,4.72909969,2902.4,2901.0,0.00406233]
[1769018457759,4.72909969,2902.3,2901.0,0.00406233]
[1769018457968,3.72165075,2902.0,2900.0,0.17255]
[1769018458162,3.72165075,2901.8,2900.0,0.17255]
[1769018458358,4.72909969,2901.7,2900.0,0.17255]
[1769018458557,1.00744894,2901.6,2900.0,0.17255]
[1769018458866,4.72909969,2901.6,2900.0,0.17255]
[1769018459067,3.72165075,2901.6,2900.0,0.17526113]
[1769018459365,1.00853655,2901.5,2900.0,0.17526113]
[1769018459560,3.72165075,2901.6,2900.0,0.17526113]
[1769018459761,1.00853933,2901.5,2900.0,0.17526113]
[1769018460066,3.72165075,2901.6,2900.0,0.17526113]
[1769018460266,1.00853931,2901.5,2900.0,0.17526113]
[1769018460462,1.00853931,2901.4,2900.0,0.00271113]
[1769018460772,3.65309073,2901.2,2900.0,0.00271113]
[1769018461064,1.00853931,2901.1,2900.0,0.00271113]
[1769018461266,4.66163004,2901.1,2900.0,0.00271113]
[1769018461469,1.00853931,2901.0,2900.0,0.00271113]
[1769018461658,4.66566133,2901.0,2900.0,0.00271113]
[1769018461861,3.65309073,2900.8,2898.8,3.5514914]
[1769018462061,1.00882587,2900.7,2899.2,3.7240914]
[1769018462266,0.00403129,2901.0,2899.4,3.7240814]
[1769018462571,1.00848126,2900.9,2899.4,3.7240814]
[1769018462867,1.00848126,2900.8,2899.4,3.72800476]
[1769018463062,1.00854707,2900.7,2899.4,0.00392336]
[1769018463262,1.0084142,2900.6,2899.4,0.00392336]
[1769018463463,3.65309073,2900.8,2899.4,0.00392336]
[1769018463665,1.0084327,2900.7,2899.4,0.00392336]
[1769018463865,1.0084327,2900.6,2899.4,0.00392336]
[1769018464066,0.92389973,2901.0,2899.4,3.55541476]
[1769018464265,1.92826923,2900.9,2899.4,3.55541476]
[1769018464460,1.00840079,2900.8,2899.4,0.00392336]
[1769018464667,1.00840079,2900.7,2899.4,0.00392336]
[1769018465267,0.91986844,2900.4,2899.4,0.00392336]
[1769018465464,1.00840079,2900.3,2899.4,0.00392336]
[1769018465763,0.91986844,2900.7,2899.4,0.00392336]
[1769018465966,0.00403129,2901.0,2899.7,3.5514914]
[1769018466170,0.00403129,2901.0,2900.1,3.5514914]
[1769018466971,0.91986844,2901.7,2900.1,3.7240414]
[1769018467173,1.92263904,2901.6,2900.1,3.7240414]
[1769018467367,1.0027706,2901.5,2900.2,0.17254]
[1769018467573,0.91986844,2902.1,2900.6,3.5514914]
[1769018467774,1.00270175,2902.0,2900.6,3.5514914]
[1769018467973,0.00246113,2902.0,2900.6,3.5514914]
[1769018468277,0.00246113,2902.0,2900.6,3.7240114]
[1769018469372,0.00246113,2902.0,2900.7,0.17251]
[1769018470072,1.00291366,2901.9,2900.1,3.5514914]
[1769018470377,0.00246113,2902.0,2900.4,0.17253]
[1769018470572,1.00296816,2901.9,2900.4,0.17253]
[1769018470873,0.00246113,2902.0,2900.4,0.17253]
[1769018471074,1.0029611,2901.9,2900.4,0.17253]
[1769018471269,0.00246113,2902.0,2900.5,0.17253]
[1769018471470,1.00308769,2901.9,2900.5,0.17253]
[1769018471671,0.00246113,2902.0,2900.5,0.17253]
[1769018471871,1.00309063,2901.9,2900.5,0.17253]
[1769018472076,0.00246113,2902.0,2900.5,0.17253]
[1769018473079,1.00322245,2901.9,2900.5,0.17253]
[1769018473274,0.00246113,2902.0,2900.5,0.17253]
[1769018473466,1.00344437,2901.9,2900.5,0.17253]
[1769018473666,3.65555186,2902.0,2900.5,0.17253]
[1769018473876,1.00342837,2901.9,2900.5,0.17253]
[1769018474172,3.65555186,2902.0,2900.5,0.17253]
[1769018474477,0.99884363,2901.9,2900.9,3.7239914]
[1769018474672,0.00246113,2902.0,2900.9,3.7239914]
[1769018475878,0.99904425,2901.9,2900.9,3.7239914]
[1769018476078,0.00246113,2902.0,2900.9,3.7239914]
[1769018478578,0.99928064,2901.9,2900.9,0.1725]
[1769018478784,3.58540548,2902.0,2900.9,0.1725]
[1769018478982,0.99935157,2901.9,2900.9,0.1725]
[1769018479282,3.58540548,2902.0,2900.9,0.1725]
[1769018479482,0.9994457,2901.9,2900.9,0.1725]
[1769018479682,3.58540548,2902.0,2900.9,0.1725]
[1769018479882,0.99946706,2901.9,2900.9,0.1725]
[1769018480085,0.99946706,2901.8,2900.9,0.1725]
[1769018480277,4.50527392,2902.0,2900.4,3.64325907]
[1769018480585,0.99979622,2901.9,2900.4,3.64325907]
[1769018480785,0.99979622,2901.8,2900.4,3.64325907]
[1769018480980,4.50527392,2902.0,2900.4,3.64325907]